Workbook

Sheet Burden Estimate
A1: DESCRIPTION | B1: Category | C1: Sample Size | D1: Number of Respondents | E1: Number of Responses per Respondent | F1: Total Annual Number of Respnses | G1: Burden Hour Per Respondent | H1: Total Burden Hours for Respondents | I1: Cost Per Hour for Respondents** | J1: Total Cost for Respondents | K1: Number of Nonrespondents | L1: Number of Responses per Non-Respondent | M1: Total Annual Number of Non-Respnses | N1: Burden Hour Per Nonrespondent | O1: Total Burden Hours for Nonrespondents | P1: Cost Per Hour for Nonrespondents** | Q1: Total Cost for Nonrespondents
A2: NWOS Surveys (NWOS Long; NWOS Short +Science Modules; NWOS Short + State) | B2: Individual | C2: =CEILING(D2/0.8,1) -> 3,688 | D2: 2,950 | E2: 1 | F2: 2,950 | G2: =(25/60) + (4/60) -> 0.48 | H2: =D2*G2 -> 1,426 | I2: $21.29 | J2: =Table1[[#This Row],[Total Burden Hours for Respondents]]*Table1[[#This Row],[Cost Per Hour for Respondents**]] -> $30,355.99 | K2: =C2-D2 -> 738 | L2: 1 | M2: 738 | N2: =(3/60) -> 0.05 | O2: =K2*N2 -> 37 | P2: $21.29 | Q2: =Table1[[#This Row],[Total Burden Hours for Nonrespondents]]*Table1[[#This Row],[Cost Per Hour for Nonrespondents**]] -> $785.60
A3: NWOS Urban Survey | B3: Individual | C3: =CEILING(D3/0.8,1) -> 700 | D3: 560 | E3: 1 | F3: 560 | G3: =(25/60) + (4/60) -> 0.48 | H3: =D3*G3 -> 271 | I3: $22.29 | J3: =Table1[[#This Row],[Total Burden Hours for Respondents]]*Table1[[#This Row],[Cost Per Hour for Respondents**]] -> $6,033.16 | K3: =C3-D3 -> 140 | L3: 1 | M3: 140 | N3: =(3/60) -> 0.05 | O3: =K3*N3 -> 7 | P3: $21.29 | Q3: =Table1[[#This Row],[Total Burden Hours for Nonrespondents]]*Table1[[#This Row],[Cost Per Hour for Nonrespondents**]] -> $149.03
A4: NWOS Corporate Survey | B4: Private Sector | C4: =CEILING(D4/0.8,1) -> 138 | D4: 110 | E4: 1 | F4: 110 | G4: =(30/60) + (4/60) -> 0.57 | H4: =D4*G4 -> 62 | I4: $23.29 | J4: =Table1[[#This Row],[Total Burden Hours for Respondents]]*Table1[[#This Row],[Cost Per Hour for Respondents**]] -> $1,451.74 | K4: =C4-D4 -> 28 | L4: 1 | M4: 28 | N4: =(3/60) -> 0.05 | O4: =K4*N4 -> 1 | P4: $21.29 | Q4: =Table1[[#This Row],[Total Burden Hours for Nonrespondents]]*Table1[[#This Row],[Cost Per Hour for Nonrespondents**]] -> $29.81
A5: NWOS Public Lands Survey | B5: State & Tribal | C5: =CEILING(D5/0.8,1) -> 650 | D5: 520 | E5: 1 | F5: 520 | G5: =(25/60) + (4/60) -> 0.48 | H5: =D5*G5 -> 251 | I5: $24.29 | J5: =Table1[[#This Row],[Total Burden Hours for Respondents]]*Table1[[#This Row],[Cost Per Hour for Respondents**]] -> $6,104.89 | K5: =C5-D5 -> 130 | L5: 1 | M5: 130 | N5: =(3/60) -> 0.05 | O5: =K5*N5 -> 7 | P5: $21.29 | Q5: =Table1[[#This Row],[Total Burden Hours for Nonrespondents]]*Table1[[#This Row],[Cost Per Hour for Nonrespondents**]] -> $138.39
A6: NWOS Focus Groups & Cognitive Interviews | B6: Individual | C6: =CEILING(D6/0.2,1) -> 240 | D6: 48 | E6: 1 | F6: 48 | G6: =(120/60) + (10/60) -> 2.17 | H6: =D6*G6 -> 104 | I6: $25.29 | J6: =Table1[[#This Row],[Total Burden Hours for Respondents]]*Table1[[#This Row],[Cost Per Hour for Respondents**]] -> $2,630.16 | K6: =C6-D6 -> 192 | L6: 1 | M6: 192 | N6: =10/60 -> 0.17 | O6: =K6*N6 -> 32 | P6: $21.29 | Q6: =Table1[[#This Row],[Total Burden Hours for Nonrespondents]]*Table1[[#This Row],[Cost Per Hour for Nonrespondents**]] -> $681.28
A7: Total | C7: =SUBTOTAL(109,Table1[Sample Size]) -> 5,416 | D7: =SUBTOTAL(109,Table1[Number of Respondents]) -> 4,188 | F7: =SUBTOTAL(109,Table1[Number of Respondents]) -> 4,188 | H7: =SUBTOTAL(109,Table1[Total Burden Hours for Respondents]) -> 2,114 | J7: =SUM(Table1[Total Cost for Respondents]) -> $46,575.94 | K7: =SUBTOTAL(109,Table1[Number of Nonrespondents]) -> 1,228 | M7: 1,228 | O7: =SUBTOTAL(109,Table1[Total Burden Hours for Nonrespondents]) -> 84 | Q7: =SUM(Table1[Total Cost for Nonrespondents]) -> $1,784.10
A8: ** Based on the U.S. Census Bureau’s 2010 Statistical Abstract “Mean hourly earnings and weekly hours by selected characteristics” (www.census.gov/compendia/statab/cats/labor_force_employment_earnings.html)
A11: Category | B11: Form | C11: Number | D11: Hours | E11: Cost
A12: Individuals | B12: NWOS Surveys (NWOS Long; NWOS Short +Science Modules; NWOS Short + State) | C12: =D2 -> 2,950 | D12: =H2 -> 1,426 | E12: =J2 -> $30,355.99
A13: Individuals | B13: NWOS Urban Survey | C13: =D3 -> 560 | D13: =H3 -> 271 | E13: =J3 -> $6,033.16
A14: Individuals | B14: NWOS Focus Groups & Cognitive Interviews | C14: =D6 -> 48 | D14: =H6 -> 104 | E14: =J6 -> $2,630.16
A15: Companies | B15: NWOS Corporate Survey | C15: =D4 -> 110 | D15: =H4 -> 62 | E15: =J4 -> $1,451.74
A16: State & Tribal | B16: NWOS Public Lands Survey | C16: =D5 -> 520 | D16: =H5 -> 251 | E16: =J5 -> $6,104.89
A17: Nonrespondents | B17: Across all forms | C17: =Table1[[#Totals],[Number of Nonrespondents]] -> 1,228 | D17: =Table1[[#Totals],[Total Burden Hours for Nonrespondents]] -> 84 | E17: =Table1[[#Totals],[Total Cost for Nonrespondents]] -> $1,784.10
A18: ** Based on the U.S. Census Bureau’s 2010 Statistical Abstract “Mean hourly earnings and weekly hours by selected characteristics” (www.census.gov/compendia/statab/cats/labor_force_employment_earnings.html)
